Cogmind - Beta 13 @@@ ROGUE MODE // 2024.07.31 @ 01:44:53 Player: Nell Result: Destroyed by P-70 Sage with Tesla Rifle Performance ------------- Evolutions (5) 2500 Regions Visited (14) 2800 Robots Destroyed (68) 340 Value Destroyed (2803) 2803 Prototype IDs (12) 240 Alien Tech Used (0) 0 Bonus (611) 611 TOTAL SCORE: 9294 Bonus ------- High Alert Combat Kills 48 Follower Combat Kills 563 Cogmind --------- Core Integrity 0/1000 Matter 137/300 Energy 35/100 System Corruption 8% Temperature Cool (0) Movement Hovering (70) Location -5/Factory Parts ------- > --- POWER (2) -------- (None) > --- PROPULSION (5) --- Gyrokinetic Inverter > --- UTILITY (7) ------ (None) > --- WEAPON (3) ------- (None) > --- INVENTORY (5) ---- Backup Laser I Heavy Phase Cannon Peak State ------------ > --- POWER ------------ Improved Deuterium Engine Neutrino Core > --- PROPULSION ------- Carbon-fiber Leg Carbon-fiber Leg Flexi-carbon Leg Flexi-carbon Leg Flexi-carbon Leg > --- UTILITY ---------- Improved Cryofiber Web Medium Storage Unit Advanced Targeting Computer Tactical Coordination Suite Weapon Cycler Phase Shifter Improved Medium Armor Plating > --- WEAPON ----------- Advanced KE Penetrator Advanced KE Penetrator Mini Assault Cannon > --- INVENTORY -------- Carbon-fiber Leg Carbon-fiber Leg Armored Huge Wheel Improved Armor Integrity Analyzer Improved Particle Charger Core Shielding Improved Hacking Suite Improved Recalibrator Phasing Sabre [Rating: 83] Favorites ----------- Power Nuclear Core Engine Improved Deuterium Engine Power Core Nuclear Core Reactor Cold Fusion Reactor Propulsion Carbon-fiber Leg Leg Carbon-fiber Leg Wheel Armored Huge Wheel Hover Unit Cooled Aerolev Unit Utility Medium Storage Unit Device Weapon Cycler Storage Medium Storage Unit Processor Advanced Targeting Computer Hackware Makeshift System Shield Protection Core Shielding Weapon Advanced KE Penetrator Energy Gun Wave Gun Energy Cannon Advanced Plasma Cannon Ballistic Gun Advanced KE Penetrator Ballistic Cannon Bore Cannon Launcher Grenade Launcher Slashing Weapon Phasing Sabre Build | -11 -10 -10 -9 -9 -7 -6 -6 -6 -6 -6 -6 -5 -5 -5 ------- Run | Yrd Mat Min Mat Min Zio Pro Fac Ext Cet Arc Hub Fac Was Fac Slots Evolved 10 | . . . 2 . . . 6 . . . . 2 . . Power 1 | . . . . . . . 1 . . . . . . . Propulsion 3 | . . . 1 . . . 1 . . . . 1 . . Utility 5 | . . . 1 . . . 3 . . . . 1 . . Weapon 1 | . . . . . . . 1 . . . . . . . Parts Attached 139 | 7 2 6 20 . 3 3 15 26 4 2 2 32 1 16 Power 29 | 1 . 1 5 . . 1 4 6 1 1 . 9 . . Engine 16 | 1 . 1 2 . . . 1 5 1 . . 5 . . Core 11 | . . . 3 . . 1 2 . . 1 . 4 . . Reactor 2 | . . . . . . . 1 1 . . . . . . Propulsion 47 | 3 . 2 9 . . 2 5 11 1 . 1 9 . 4 Treads . | . . . . . . . . . . . . . . . Leg 40 | 2 . 2 9 . . 2 4 11 1 . 1 8 . . Wheel 3 | 1 . . . . . . 1 . . . . 1 . . Hover 4 | . . . . . . . . . . . . . . 4 Flight . | . . . . . . . . . . . . . . . Utility 40 | 1 2 2 3 . 1 . 5 5 . . 1 11 1 8 Device 18 | . 1 . . . . . 4 2 . . . 8 . 3 Storage 4 | 1 . 1 1 . . . . . . . 1 . . . Processor 7 | . 1 1 . . 1 . . . . . . . 1 3 Hackware 3 | . . . . . . . 1 . . . . . . 2 Protection 8 | . . . 2 . . . . 3 . . . 3 . . Artifact . | . . . . . . . . . . . . . . . Weapon 23 | 2 . 1 3 . 2 . 1 4 2 1 . 3 . 4 Energy Gun 8 | . . . 1 . . . . 2 . . . 1 . 4 Energy Cannon 1 | . . . . . . . . . . . . 1 . . Ballistic Gun 7 | 2 . 1 1 . . . . . 2 . . 1 . . Ballistic Cannon 5 | . . . . . 1 . 1 2 . 1 . . . . Launcher 1 | . . . 1 . . . . . . . . . . . Special Weapon . | . . . . . . . . . . . . . . . Impact Weapon . | . . . . . . . . . . . . . . . Slashing Weapon 1 | . . . . . 1 . . . . . . . . . Piercing Weapon . | . . . . . . . . . . . . . . . Special Melee Weapon . | . . . . . . . . . . . . . . . Unidentified Prototypes 8 | . . . 1 . . . 2 . 1 . . . 1 3 Parts Lost 48 | . . . 3 . . 4 . 10 3 1 . 23 . 4 Power 11 | . . . . . . 1 . 2 1 1 . 5 . 1 Propulsion 15 | . . . . . . 3 . 4 . . . 8 . . Utility 12 | . . . 1 . . . . 2 . . . 7 . 2 Weapon 10 | . . . 2 . . . . 2 2 . . 3 . 1 Highest Loss Streak 8 | . . . 2 . . 4 . 7 2 1 . 8 . 4 To Critical Strikes 3 | . . . . . . . . . 1 1 . 1 . . Average Slot Usage (%) 93 | . 98 100 96 100 100 90 87 97 98 99 100 93 . 58 Engine 5 | . 14 14 4 . . . 5 7 5 6 6 7 . 7 Core 5 | . . . 5 11 11 10 6 1 . 4 6 2 . . Leg 25 | . 28 28 32 33 33 24 19 25 26 26 26 26 . . Device 10 | . 3 . . . . . 13 17 20 20 20 21 . 11 Storage 7 | . 14 14 11 11 11 11 6 6 6 6 6 4 . . Processor 8 | . 9 14 11 11 11 11 6 6 6 6 6 4 . 6 Hackware 1 | . . . . . . . 4 3 . . . . . 5 Protection 6 | . . . 10 11 11 11 3 4 6 6 6 4 . . Energy Gun 1 | . . . 4 . . . . 2 . . . 3 . 11 Ballistic Gun 7 | . 28 28 15 11 4 . . . 11 13 13 9 . . Ballistic Cannon 6 | . . . . . 6 11 11 16 7 6 6 1 . . Slashing Weapon 2 | . . . . . 6 11 6 . . . . . . . Naked Turns 147 | . . . . . . . . . . . . 32 109 6 Heaviest Build 65 | 10 11 19 24 24 31 31 47 61 60 58 58 65 . 27 Greatest Support 90 | 20 20 20 39 39 39 39 50 65 65 65 65 90 3 33 Greatest Overweight (x) 3 | . . . . . . 1 3 1 . . . 2 . 1 Average Overweight (x) . | . . . . . . . . . . . . . . . Largest Inventory Capacity 10 | 8 8 10 10 10 10 10 10 10 10 10 10 10 5 5 Average Capacity 9 | 7 8 8 10 10 10 10 10 10 10 10 10 9 5 5 Most Carried 10 | 3 8 9 10 9 10 10 10 10 10 10 10 10 5 5 Average Carried 8 | 2 5 8 9 9 9 7 7 8 9 9 10 8 4 2 Final Capacity 10 | 8 8 10 10 10 10 10 10 10 10 10 10 5 5 5 Final Carried 10 | 3 8 9 9 9 10 7 10 10 10 10 10 2 5 2 Class Distribution -------------------- 38% | Scavenger-Gunner 35% | Mutant 22% | Scavenger-Mutant Dominant Class ---------------- Mutant | -10/Materials Mutant | -10/Mines Mutant | -9/Materials Scavenger-Mutant | -9/Mines Scavenger-Mutant | -7/Zion Mutant | -6/Proximity Caves Mutant | -6/Factory Scavenger-Gunner | -6/Extension Scavenger-Gunner | -6/Cetus Scavenger-Gunner | -6/Archives Scavenger-Gunner | -6/Hub_04(d) Scavenger-Gunner | -5/Factory Mutant | -5/Waste Gunner | -5/Factory Resources | -11 -10 -10 -9 -9 -7 -6 -6 -6 -6 -6 -6 -5 -5 -5 ----------- Run | Yrd Mat Min Mat Min Zio Pro Fac Ext Cet Arc Hub Fac Was Fac Matter Collected 2678 | 282 28 86 353 10 13 99 176 659 269 225 60 418 . . Remotely . | . . . . . . . . . . . . . . . Salvage Created 2990 | . 98 143 475 10 . 93 260 623 87 241 226 734 . . Parts 137 | . 5 12 31 2 . 2 7 31 2 6 8 31 . . Haulers Intercepted 5 | . 1 . 2 . . . 1 . . . 1 . . . Recyclers Shooed 4 | . . 1 . . . . . 1 . . . 2 . . Parts Field Recycled . | . . . . . . . . . . . . . . . Retrieved Matter . | . . . . . . . . . . . . . . . Parts Self-Destructed 2 | . . . . . . 2 . . . . . . . . Prevented . | . . . . . . . . . . . . . . . Kills | -11 -10 -10 -9 -9 -7 -6 -6 -6 -6 -6 -6 -5 -5 -5 ------- Run | Yrd Mat Min Mat Min Zio Pro Fac Ext Cet Arc Hub Fac Was Fac Combat Hostiles Destroyed 52 | . 1 5 8 4 . 3 5 10 3 3 2 8 . . Melee 4 | . . . . . . . 4 . . . . . . . Guns 21 | . 1 5 7 . . . . . . 2 2 4 . . Cannons 19 | . . . . . . 3 1 10 3 1 . 1 . . AOE 8 | . . . 1 4 . . . . . . . 3 . . Classes Destroyed 14 | . 2 2 2 1 . . . 2 . 1 . 4 . . Worker 2 | . . . . . . . . . . . . 2 . . Builder 1 | . . . . . . . . 1 . . . . . . Tunneler 1 | . . . . 1 . . . . . . . . . . Hauler 5 | . 1 . 2 . . . 1 . . . 1 . . . Recycler 3 | . . . . . . . . 1 . . . 2 . . Operator 1 | . . . . . . . . . . 1 . . . . Watcher 3 | . . . 2 . . . . . . . . 1 . . Swarmer 12 | . . 3 . 4 . 2 3 . . . . . . . Grunt 16 | . 1 1 4 . . . 2 4 . . 1 3 . . Duelist 2 | . . . 2 . . . . . . . . . . . Sentry 15 | . . 1 2 . . 1 . 6 . 3 1 1 . . Hunter 2 | . . . . . . . . . . . . 2 . . Programmer 1 | . . . . . . . . . . . . 1 . . Heavy 1 | . . . . . . . . . . . . 1 . . Cetus Guard 3 | . . . . . . . . . 3 . . . . . Best Kill Streak 5 | . 2 3 4 5 . 3 2 2 3 2 1 4 . . Combat Bots Only 4 | . 1 3 2 4 . 3 2 2 3 2 1 4 . . Max Kills in Single Turn 5 | . 1 1 1 5 . 1 1 1 1 1 1 2 . . Gunslinging . | . . . . . . . . . . . . . . . Exploded 4 | . . . 1 4 . . . . . . . 2 . . Melee 1 | . . . . . . . 1 . . . . . . . Uniques/NPCs Destroyed . | . . . . . . . . . . . . . . . Combat | -11 -10 -10 -9 -9 -7 -6 -6 -6 -6 -6 -6 -5 -5 -5 -------- Run | Yrd Mat Min Mat Min Zio Pro Fac Ext Cet Arc Hub Fac Was Fac Hostile Shots Fired 806 | . . 38 53 8 . 57 21 333 14 22 6 218 4 32 Missed 270 | . . 9 13 2 . 17 6 120 3 9 4 80 . 7 Damage Taken 7287 | . . 351 738 76 . 367 247 1639 314 311 12 2505 216 511 Core 1546 | . . 72 164 14 . 27 22 202 . 36 . 564 216 229 Absorbed by Shields 119 | . . . . . . . . 119 . . . . . . Redirected to Shielding 122 | . . . 58 2 . 6 5 14 . 8 . 29 . . Regen/Repaired (Parts) 213 | . . . 33 . 102 . . . . . . . . 78 Core Remaining (%) 72 | 100 . 71 . . . 48 . . . . 69 . . . Volleys Fired 186 | 8 4 23 45 2 . 8 2 30 17 15 3 26 . 3 Largest 3 | 2 2 2 2 2 . 1 2 3 3 3 3 3 . 3 Hottest 220 | 40 40 40 65 53 . 57 105 182 158 118 118 151 . 220 Shots Fired 423 | 12 8 46 79 4 . 8 4 82 44 45 9 72 . 10 Gun 279 | 12 8 46 73 2 . . . 13 14 30 6 65 . 10 Cannon 136 | . . . . . . 8 4 69 30 15 3 7 . . Launcher 8 | . . . 6 2 . . . . . . . . . . Special . | . . . . . . . . . . . . . . . Kinetic 354 | 12 8 46 54 2 . 8 4 69 44 45 9 53 . . Thermal 35 | . . . . . . . . 13 . . . 19 . 3 Explosive 8 | . . . 6 2 . . . . . . . . . . Electromagnetic 26 | . . . 19 . . . . . . . . . . 7 Robot Hit Streak 33 | 1 4 9 13 1 . 6 10 15 12 33 16 15 . 19 Robot Miss Streak 7 | 7 1 3 3 1 . 2 . 3 2 1 . 2 . 1 Penetration Max 1 | . . . . . . . . . . 1 . 1 . . Secondary Targets 3 | . . 1 1 . . . . . . . . 1 . . Max Gunslinging Chain 1 | . . 1 1 . . . . . . . . 1 . . Shots Hit Robots 308 | 3 6 35 62 2 . 7 18 56 18 32 5 56 . 8 Core Hits 139 | . 4 12 29 6 . 4 8 18 11 10 4 32 . 1 Critical Kills 14 | . . . . . . 1 1 4 1 2 2 3 . . Critical Parts Destroyed 12 | . . 1 . . . 2 . 2 . 4 . 3 . . Critical Strikes 38 | . . 1 . . . 4 5 7 3 7 2 9 . . Burn 3 | . . . . . . . . . . . . 3 . . Destroy 27 | . . 1 . . . 3 1 6 1 7 2 6 . . Blast 3 | . . . . . . . . 1 2 . . . . . Sever 5 | . . . . . . 1 4 . . . . . . . Melee Attacks 23 | . . . . . 1 3 16 3 . . . . . . Impact . | . . . . . . . . . . . . . . . Slashing 23 | . . . . . 1 3 16 3 . . . . . . Piercing . | . . . . . . . . . . . . . . . Sneak Attacks 2 | . . . . . . . 1 1 . . . . . . Combat Hostiles . | . . . . . . . . . . . . . . . Follow-up Attacks . | . . . . . . . . . . . . . . . Damage Inflicted 8075 | 28 47 294 908 376 . 171 760 1719 605 885 140 2027 . 115 Guns 3576 | 28 47 292 714 36 . . . 182 . 633 134 1395 . 115 Cannons 2430 | . . . . . . 133 101 1329 556 252 . 59 . . Explosions 989 | . . . 192 340 . . . . . . . 457 . . Melee 871 | . . . . . . 38 659 174 . . . . . . Ramming 209 | . . 2 2 . . . . 34 49 . 6 116 . . Kinetic 5096 | 28 47 292 441 36 . 133 101 1329 556 885 134 1114 . . Thermal 612 | . . . . . . . . 182 . . . 340 . 90 Explosive 937 | . . . 192 340 . . . . . . . 405 . . Electromagnetic 350 | . . . 273 . . . . . . . . 52 . 25 Impact . | . . . . . . . . . . . . . . . Slashing 871 | . . . . . . 38 659 174 . . . . . . Piercing . | . . . . . . . . . . . . . . . Highest Corruption 7 | . . . . . . . . . . . . 1 6 7 Average Corruption 3 | . . . . . . . . . . . . 1 6 6 Corruption Purged 1 | . . . . . . . . . . . . 1 . . Corruption Blocked 8 | . . . . . . . . . . . . . . 8 Effects 12 | . . . . . . . . . . . . 2 2 8 Message Errors 4 | . . . . . . . . . . . . . 1 3 Matter Fused 2 | . . . . . . . . . . . . . . 2 Heat Flow Errors 2 | . . . . . . . . . . . . 1 . 1 Data Loss (minor) 1 | . . . . . . . . . . . . 1 . . Data Loss (major) 1 | . . . . . . . . . . . . . . 1 Misfires 1 | . . . . . . . . . . . . . . 1 Alerts 1 | . . . . . . . . . . . . . 1 . Overload Shots . | . . . . . . . . . . . . . . . Overflow Damage 133 | . . . 4 13 . . 15 67 11 . . 23 . . Projectiles 16 | . . . . . . . . 5 11 . . . . . Explosions 40 | . . . 4 13 . . . . . . . 23 . . Melee 77 | . . . . . . . 15 62 . . . . . . Knockbacks 17 | . . . . . . 1 1 13 1 . . 1 . . Impact 4 | . . . . . . . . 2 1 . . 1 . . Kinetic 11 | . . . . . . 1 1 9 . . . . . . Secondary 2 | . . . . . . . . 2 . . . . . . Self-Inflicted Damage 147 | . . . 67 32 . . . . . . . 48 . . Shots 7 | . . . 3 2 . . . . . . . 2 . . Rammed . | . . . . . . . . . . . . . . . Targets Rammed 31 | . . 1 1 . . . . 5 8 . 2 14 . . Kicked 31 | . . 1 1 . . . . 5 8 . 2 14 . . Crushed . | . . . . . . . . . . . . . . . Highest Temperature 599 | . . 18 126 . . 70 134 599 149 68 . 477 . 487 Average Temperature 144 | . . 6 44 . . 31 64 202 84 24 . 198 . 204 Received Heat Transfer 1178 | . . 132 183 . . 60 99 485 27 63 . 129 . . Effects 19 | . . . . . . . . 12 . . . 7 . . Shutdowns 10 | . . . . . . . . 6 . . . 4 . . Energy Bleed 1 | . . . . . . . . 1 . . . . . . Interference 3 | . . . . . . . . 3 . . . . . . Matter Decay 1 | . . . . . . . . 1 . . . . . . Damage (minor) 1 | . . . . . . . . 1 . . . . . . Damage (major) 3 | . . . . . . . . . . . . 3 . . Siege Activations . | . . . . . . . . . . . . . . . Robots Corrupted . | . . . . . . . . . . . . . . . Combat Hostiles . | . . . . . . . . . . . . . . . Parts Fried 3 | . . . 3 . . . . . . . . . . . Impact Corruptions . | . . . . . . . . . . . . . . . Robots Melted . | . . . . . . . . . . . . . . . Combat Hostiles . | . . . . . . . . . . . . . . . Parts Melted 1 | . . . . . . . . . . . . 1 . . Heat Transferred 1091 | . . . . . . . . 296 . . . 684 . 111 Parts Sabotaged . | . . . . . . . . . . . . . . . Parts Stolen . | . . . . . . . . . . . . . . . Parts Stripped . | . . . . . . . . . . . . . . . Power Chain Reactions 1 | . . . . . . . . . . . . 1 . . Alert | -11 -10 -10 -9 -9 -7 -6 -6 -6 -6 -6 -6 -5 -5 -5 ------- Run | Yrd Mat Min Mat Min Zio Pro Fac Ext Cet Arc Hub Fac Was Fac Peak Influence 1388 | . 27 185 192 185 . . 152 322 1388 632 357 315 87 104 Initial 501 | . . 10 . 74 . . . 2 67 501 221 76 57 60 Average 183 | . 20 90 71 128 . . 24 156 555 615 285 161 76 70 Maximum Alert Level 4 | . . . . . . . . 1 4 2 1 1 . . Low Security (%) 70 | 100 100 100 100 100 . . 100 79 29 . 2 60 100 100 Level 1 19 | . . . . . . . . 20 19 . 97 39 . . Level 2 7 | . . . . . . . . . 23 100 . . . . Level 3 . | . . . . . . . . . 6 . . . . . Level 4 1 | . . . . . . . . . 20 . . . . . Level 5 . | . . . . . . . . . . . . . . . High Security . | . . . . . . . . . . . . . . . Max Security . | . . . . . . . . . . . . . . . Squads Dispatched 11 | . . . 2 . . . 1 1 . . . 5 . 2 Investigation 3 | . . . . . . . . . . . . 2 . 1 Extermination 3 | . . . . . . . . . . . . 2 . 1 Reinforcement 5 | . . . 2 . . . 1 1 . . . 1 . . Assault . | . . . . . . . . . . . . . . . Garrison . | . . . . . . . . . . . . . . . Intercept . | . . . . . . . . . . . . . . . Searches Triggered . | . . . . . . . . . . . . . . . Construction Impeded 1 | . . . 1 . . . . . . . . . . . Haulers Reinforced 1 | . . . . . . . 1 . . . . . . . Active Scanning Responses . | . . . . . . . . . . . . . . . Cargo Convoy Interrupts 1 | . . . . . . . . . . . . 1 . . Stealth | -11 -10 -10 -9 -9 -7 -6 -6 -6 -6 -6 -6 -5 -5 -5 --------- Run | Yrd Mat Min Mat Min Zio Pro Fac Ext Cet Arc Hub Fac Was Fac Distress Signals 9 | . . . 2 . . . . 1 3 . 2 1 . . Communications Jammed . | . . . . . . . . . . . . . . . Distress Signals . | . . . . . . . . . . . . . . . Times Spotted 123 | . 1 7 14 4 . 3 7 27 7 4 9 32 6 2 Peak Tracking Total 16 | . 1 3 3 4 . 3 3 5 5 2 4 16 6 2 Tactical Retreats 11 | . . 2 1 . . . 2 3 . . . 3 . . Traps | -11 -10 -10 -9 -9 -7 -6 -6 -6 -6 -6 -6 -5 -5 -5 ------- Run | Yrd Mat Min Mat Min Zio Pro Fac Ext Cet Arc Hub Fac Was Fac Traps Triggered 5 | . . . . . . . . 2 . . . 3 . . Indirectly . | . . . . . . . . . . . . . . . Trap Hack Attempts . | . . . . . . . . . . . . . . . Triggered . | . . . . . . . . . . . . . . . Disarmed . | . . . . . . . . . . . . . . . Reprogrammed . | . . . . . . . . . . . . . . . Reused . | . . . . . . . . . . . . . . . Traps Extracted . | . . . . . . . . . . . . . . . Installed . | . . . . . . . . . . . . . . . Triggered 4 | . . . . . . . . . . . . 4 . . Machines | -11 -10 -10 -9 -9 -7 -6 -6 -6 -6 -6 -6 -5 -5 -5 ---------- Run | Yrd Mat Min Mat Min Zio Pro Fac Ext Cet Arc Hub Fac Was Fac Machines Disabled 18 | . . . 2 . . . . 3 1 2 . 10 . . Max in Single Turn 5 | . . . 1 . . . . 1 1 1 . 5 . . Machines Repaired . | . . . . . . . . . . . . . . . Machines Dismantled . | . . . . . . . . . . . . . . . Machines Sabotaged . | . . . . . . . . . . . . . . . Overloaded Fab Kills . | . . . . . . . . . . . . . . . Hacking | -11 -10 -10 -9 -9 -7 -6 -6 -6 -6 -6 -6 -5 -5 -5 --------- Run | Yrd Mat Min Mat Min Zio Pro Fac Ext Cet Arc Hub Fac Was Fac Machines Accessed 31 | . 2 1 4 . . . 4 9 3 . 1 4 . 3 Terminals 21 | . 1 1 2 . . . 3 9 3 . 1 . . 1 Fabricators 2 | . . . . . . . . . . . . 2 . . Repair Stations 3 | . . . 1 . . . 1 . . . . . . 1 Recycling Units 2 | . 1 . 1 . . . . . . . . . . . Scanalyzers 3 | . . . . . . . . . . . . 2 . 1 Garrison Access . | . . . . . . . . . . . . . . . Total Hacks 64 | . 3 1 12 . . . 7 19 4 . 1 10 . 7 Successful 33 | . 1 1 4 . . . 2 8 2 . . 8 . 7 Failed 31 | . 2 . 8 . . . 5 11 2 . 1 2 . . Catastrophic 4 | . . . . . . . 1 2 1 . . . . . Database Lockouts . | . . . . . . . . . . . . . . . Manual 4 | . 1 . . . . . . . . . . 3 . . Terminals 40 | . 2 1 6 . . . 5 19 4 . 1 . . 2 Fabricators 5 | . . . . . . . . . . . . 5 . . Repair Stations 8 | . . . 3 . . . 2 . . . . . . 3 Recycling Units 4 | . 1 . 3 . . . . . . . . . . . Scanalyzers 7 | . . . . . . . . . . . . 5 . 2 Garrison Access . | . . . . . . . . . . . . . . . Terminal Hacks 16 | . . 1 1 . . . 2 8 2 . . . . 2 Record 6 | . . . . . . . 1 2 1 . . . . 2 Prototype ID Bank 2 | . . . 1 . . . . 1 . . . . . . Open Door 6 | . . . . . . . 1 4 1 . . . . . Zone Layout 2 | . . 1 . . . . . 1 . . . . . . Fabricator Hacks 4 | . . . . . . . . . . . . 4 . . Load Schematic 2 | . . . . . . . . . . . . 2 . . Build 2 | . . . . . . . . . . . . 2 . . Repair Station Hacks 5 | . . . 2 . . . . . . . . . . 3 Scan Component 2 | . . . 1 . . . . . . . . . . 1 Repair 2 | . . . 1 . . . . . . . . . . 1 Refit 1 | . . . . . . . . . . . . . . 1 Recycling Unit Hacks 2 | . 1 . 1 . . . . . . . . . . . Retrieve Components 2 | . 1 . 1 . . . . . . . . . . . Scanalyzer 6 | . . . . . . . . . . . . 4 . 2 Insert Component 3 | . . . . . . . . . . . . 2 . 1 Analyze 3 | . . . . . . . . . . . . 2 . 1 Garrison Access Hacks . | . . . . . . . . . . . . . . . Unauthorized Hacks . | . . . . . . . . . . . . . . . Terminals . | . . . . . . . . . . . . . . . Fabricators . | . . . . . . . . . . . . . . . Repair Stations . | . . . . . . . . . . . . . . . Recycling Units . | . . . . . . . . . . . . . . . Scanalyzers . | . . . . . . . . . . . . . . . Garrison Access . | . . . . . . . . . . . . . . . Data Cores Recovered . | . . . . . . . . . . . . . . . Used . | . . . . . . . . . . . . . . . Hacking Detections 22 | . 2 . 3 . . . 3 5 3 . 1 3 . 2 Full Trace Events 3 | . . . . . . . . . . . . 2 . 1 Feedback Events . | . . . . . . . . . . . . . . . Feedback Blocked . | . . . . . . . . . . . . . . . Robot Schematics Acquired 4 | . . . . . 4 . . . . . . . . . Robots Built . | . . . . . . . . . . . . . . . Authchips . | . . . . . . . . . . . . . . . Time . | . . . . . . . . . . . . . . . Total Robot Build Rating . | . . . . . . . . . . . . . . . Part Schematics Acquired 17 | . . . . . 14 . . . . . . 2 . 1 Parts Built 4 | . . . . . . . . . . . . 4 . . Authchips . | . . . . . . . . . . . . . . . Time 190 | . . . . . . . . . . . . 190 . . Total Part Build Rating 20 | . . . . . . . . . . . . 20 . . Parts Repaired 2 | . . . 1 . . . . . . . . . . 1 Time 100 | . . . 32 . . . . . . . . . . 68 Parts Recycled . | . . . . . . . . . . . . . . . Recycled Matter . | . . . . . . . . . . . . . . . Retrieved Matter . | . . . . . . . . . . . . . . . Retrieved Components 3 | . 2 . 1 . . . . . . . . . . . Parts Scanalyzed 3 | . . . . . . . . . . . . 2 . 1 Part Schematics Acquired 3 | . . . . . . . . . . . . 2 . 1 Parts Damaged 1 | . . . . . . . . . . . . . . 1 Bothacking | -11 -10 -10 -9 -9 -7 -6 -6 -6 -6 -6 -6 -5 -5 -5 ------------ Run | Yrd Mat Min Mat Min Zio Pro Fac Ext Cet Arc Hub Fac Was Fac Used RIF Installer . | . . . . . . . . . . . . . . . Robots Hacked . | . . . . . . . . . . . . . . . Non-combat . | . . . . . . . . . . . . . . . Combat . | . . . . . . . . . . . . . . . Robot Hacks Applied . | . . . . . . . . . . . . . . . Relay Couplers Released . | . . . . . . . . . . . . . . . Fabnet Peak Effective % . | . . . . . . . . . . . . . . . Robots Rewired 5 | . . . . . . . . 5 . . . . . . Allies Hacked . | . . . . . . . . . . . . . . . Hacks Repelled . | . . . . . . . . . . . . . . . Allies | -11 -10 -10 -9 -9 -7 -6 -6 -6 -6 -6 -6 -5 -5 -5 -------- Run | Yrd Mat Min Mat Min Zio Pro Fac Ext Cet Arc Hub Fac Was Fac Total Allies 11 | . . . . . . . . 11 . . . . . . Largest Group 6 | . . . . . . . . 6 2 . . . . . Highest-Rated Group 305 | . . . . . . . . 305 70 . . . . . Highest-Rated Ally 159 | . . . . . . . . 159 39 . . . . . Total Orders . | . . . . . . . . . . . . . . . Ally Attacks 105 | . . . . . . . . 96 9 . . . . . Total Damage 2517 | . . . . . . . . 2306 211 . . . . . Kills 12 | . . . . . . . . 11 1 . . . . . Allies Corrupted . | . . . . . . . . . . . . . . . Allies Melted . | . . . . . . . . . . . . . . . Intel | -11 -10 -10 -9 -9 -7 -6 -6 -6 -6 -6 -6 -5 -5 -5 ------- Run | Yrd Mat Min Mat Min Zio Pro Fac Ext Cet Arc Hub Fac Was Fac Robot Analysis Total . | . . . . . . . . . . . . . . . Derelict Logs Recovered 5 | . . 1 . 1 2 1 . . . . . . . . Drone Launches . | . . . . . . . . . . . . . . . Drone Recoveries . | . . . . . . . . . . . . . . . Exploration | -11 -10 -10 -9 -9 -7 -6 -6 -6 -6 -6 -6 -5 -5 -5 ------------- Run | Yrd Mat Min Mat Min Zio Pro Fac Ext Cet Arc Hub Fac Was Fac Turns Passed 8809 | 109 188 439 599 111 1241 1158 687 1151 473 384 410 1401 110 348 Spaces Moved 5862 | 62 133 292 303 88 963 676 377 729 340 263 304 805 211 316 Core 289 | 2 . . . . . . . . . . . 64 211 12 Treads . | . . . . . . . . . . . . . . . Legs 5134 | 60 133 292 303 88 963 676 340 729 340 263 304 643 . . Wheels 135 | . . . . . . . 37 . . . . 98 . . Hover 304 | . . . . . . . . . . . . . . 304 Flight . | . . . . . . . . . . . . . . . Fastest Speed 40 | 50 120 120 120 120 120 120 115 120 120 120 120 50 50 40 Average Speed 121 | 117 120 120 120 120 120 167 152 126 120 120 120 114 50 62 Slowest Speed 330 | 120 120 120 120 120 120 190 330 190 120 120 120 130 50 111 Overloaded Moves 9 | . . . . . . . . . . . . . . 9 Propulsion Burnouts . | . . . . . . . . . . . . . . . Robots Hopped . | . . . . . . . . . . . . . . . Cave-ins Triggered . | . . . . . . . . . . . . . . . Exploration Rate (%) 46 | 4 31 49 30 36 78 86 5 72 85 98 20 16 86 6 Regions Visited 14 Branch Regions 8 Pre-discovered Areas 3 | . . . . 1 2 . . . . . . . . . Known Exits Taken . | . . . . . . . . . . . . . . . Unknown Exits Taken 12 | 1 1 1 1 1 1 1 1 1 1 1 1 . . . Scrap Searched 4 | . . 2 . . 1 1 . . . . . . . . Spaces Dug . | . . . . . . . . . . . . . . . Terrain Destroyed 113 | . . . 26 19 . 3 1 12 3 3 4 42 . . Melee . | . . . . . . . . . . . . . . . Projectile 35 | . . . . . . 3 1 12 3 3 4 9 . . AOE 78 | . . . 26 19 . . . . . . . 33 . . Terrain Rammed . | . . . . . . . . . . . . . . . Walls Destroyed . | . . . . . . . . . . . . . . . Machines Disabled . | . . . . . . . . . . . . . . . Actions | -11 -10 -10 -9 -9 -7 -6 -6 -6 -6 -6 -6 -5 -5 -5 --------- Run | Yrd Mat Min Mat Min Zio Pro Fac Ext Cet Arc Hub Fac Was Fac Total 7165 | 85 154 344 464 89 1048 692 460 899 375 305 344 1238 214 454 Wait 800 | 6 9 15 80 . 69 3 41 60 . 23 32 347 . 115 Move 5849 | 61 132 291 302 87 962 675 376 728 339 262 303 805 210 316 Hop . | . . . . . . . . . . . . . . . Pick Up 57 | 3 6 3 7 . 7 . 5 9 4 2 . 6 2 3 Fast Attach 46 | 6 1 . 6 . . . 6 5 . 1 . 9 1 11 Attach 35 | . . . 3 . . 3 3 6 2 1 . 13 . 4 Detach 2 | . . . . . . . 1 1 . . . . . . Swap 58 | 1 1 6 11 . 3 . 6 15 2 . 2 10 . 1 Drop 53 | . 1 5 9 . 6 . 4 12 3 1 2 8 1 1 Fire 186 | 8 4 23 45 2 . 8 2 30 17 15 3 26 . 3 Melee 23 | . . . . . 1 3 16 3 . . . . . . Ram . | . . . . . . . . . . . . . . . Kick 31 | . . 1 1 . . . . 5 8 . 2 14 . . Crush . | . . . . . . . . . . . . . . . Escape Stasis 10 | . . . . . . . . 10 . . . . . . Rewire 15 | . . . . . . . . 15 . . . . . . Trap . | . . . . . . . . . . . . . . . Miscellaneous . | . . . . . . . . . . . . . . . Route ------- -11/Scrapyard -10/Materials -10/Mines -9/Materials -9/Mines -7/Zion -6/Proximity Caves -6/Factory -6/Extension (discovered 2 exits: *Fac / *Cet) -6/Cetus -6/Archives (discovered 3 exits: *Fac / *Hub x2) -6/Hub_04(d) -5/Factory -5/Waste -5/Factory History --------- Turn | Location | Event 45 | -11/Scrapyard | Discovered new exit (range 15) 110 | -11/Scrapyard | Entered Materials 283 | -10/Materials | Discovered new exit (range 13) 298 | -10/Materials | Entered Mines 318 | -10/Mines | Build established: Mutant 450 | -10/Mines | Met a Derelict bent on vengeance 545 | -10/Mines | Learned Materials security intel 731 | -10/Mines | Discovered new exit (range 4) 737 | -10/Mines | Entered Materials 737 | -9/Materials | Evolved 2 slots: Propulsion x1, Utility x1 777 | -9/Materials | Repaired Imp. Ion Engine 1308 | -9/Materials | Discovered new exit (range 14) 1336 | -9/Materials | Entered Mines 1429 | -9/Mines | A Derelict revealed a hidden shortcut to a safe place 1436 | -9/Mines | Learned location of Storage (-8) 1447 | -9/Mines | Entered Zion 1563 | -7/Zion | Build established: Scavenger-Mutant 1566 | -7/Zion | Learned location of Extension (-6) 1646 | -7/Zion | Acquired unknown access codes intercepted by a Zionite 2007 | -7/Zion | Learned Factory stockpile data 2635 | -7/Zion | Discovered new exit (range 15) 2688 | -7/Zion | Entered Proximity Caves 2922 | -6/Proximity Caves | Learned Factory stockpile data 2950 | -6/Proximity Caves | Attracted the attention of an 0b10 checkpoint 2986 | -6/Proximity Caves | Core integrity fell below 50% 3013 | -6/Proximity Caves | Lost 4 parts (1p3n) 3258 | -6/Proximity Caves | Build established: Mutant 3824 | -6/Proximity Caves | Discovered new exit (range 12) 3846 | -6/Proximity Caves | Entered Factory 3846 | -6/Factory | Evolved 6 slots: Power x1, Propulsion x1, Utility x3, Weapon x1 4458 | -6/Factory | Discovered new exit (range 9) 4533 | -6/Factory | Entered Extension 4599 | -6/Extension | Rescued A7 4754 | -6/Extension | Rescued a captive Derelict 4895 | -6/Extension | Rescued a captive Derelict 4897 | -6/Extension | Rescued a captive Derelict 4922 | -6/Extension | Rescued a captive Derelict 4923 | -6/Extension | Rescued a captive Derelict 4948 | -6/Extension | Build established: Scavenger-Gunner 4992 | -6/Extension | Spotted B-75 Beast 5003 | -6/Extension | Spotted B-75 Beast 5015 | -6/Extension | Allies destroyed B-75 Beast 5033 | -6/Extension | Allies destroyed B-75 Beast 5076 | -6/Extension | Lost 6 allies 5117 | -6/Extension | Lost 7 parts (2p3n1u1w) 5144 | -6/Extension | Extracted ID and sensor layout for unrecognized location from A7's data core 5657 | -6/Extension | Discovered new exit (range 15) 5658 | -6/Extension | Discovered new exit (range 15) 5684 | -6/Extension | Entered Cetus 5684 | -6/Cetus | Accompanied by 2 allies 5701 | -6/Cetus | Spotted Cetus Guard 5701 | -6/Cetus | Spotted Cetus Guard 5704 | -6/Cetus | Destroyed Cetus Guard 5705 | -6/Cetus | Spotted Cetus Guard 5710 | -6/Cetus | Spotted Cetus Guard 5714 | -6/Cetus | Allies destroyed Cetus Guard 5720 | -6/Cetus | Destroyed Cetus Guard 5725 | -6/Cetus | Destroyed Cetus Guard 6107 | -6/Cetus | Discovered new exit (range 16) 6129 | -6/Cetus | Spotted Cetus Guard 6130 | -6/Cetus | Spotted Cetus Guard 6157 | -6/Cetus | Entered Archives 6184 | -6/Archives | Unable to access archive contents 6305 | -6/Archives | Unable to access archive contents 6318 | -6/Archives | Unable to access archive contents 6335 | -6/Archives | Discovered new exit (range 16) 6381 | -6/Archives | Discovered new exit (range 16) 6429 | -6/Archives | Discovered new exit (range 14) 6541 | -6/Archives | Entered Hub_04(d) 6767 | -6/Hub_04(d) | Discovered new exit (range 16) 6951 | -6/Hub_04(d) | Entered Factory 6951 | -5/Factory | Evolved 2 slots: Propulsion x1, Utility x1 7111 | -5/Factory | Fabricated Flexi-carbon Leg (x2) 7475 | -5/Factory | Fabricated Angular Momentum Engine? 7884 | -5/Factory | Cargo convoy interrupted 8200 | -5/Factory | Lost 6 parts (1p2n2u1w) 8260 | -5/Factory | Lost 8 parts (3n3u2w) 8320 | -5/Factory | Released all parts (5) 8326 | -5/Factory | Core integrity fell below 50% 8351 | -5/Factory | Lost 5 parts (2p2n1u) 8352 | -5/Factory | Sucked down chute 8352 | -5/Factory | Entered Waste 8361 | -5/Waste | Found Prototype Processor 8361 | -5/Waste | Identified Spectral Analyzer 8366 | -5/Waste | Spotted C-40 Crusher 8367 | -5/Waste | EMP discharged 8373 | -5/Waste | Spotted C-40 Crusher 8398 | -5/Waste | Spotted C-40 Crusher 8402 | -5/Waste | Spotted C-40 Crusher 8406 | -5/Waste | Spotted C-40 Crusher 8408 | -5/Waste | Spotted C-40 Crusher 8455 | -5/Waste | Discovered new exit (range 13) 8462 | -5/Waste | Entered Factory 8500 | -5/Factory | Build established: Mutant 8610 | -5/Factory | Repaired Gamma Rifle 8778 | -5/Factory | Core integrity fell below 20% 8809 | -5/Factory | Released all parts (12) 8810 | -5/Factory | Destroyed by P-70 Sage with Tesla Rifle Last Messages --------------- 08780_ Backup Power I destroyed. 08780_ Imp. Corruption Screen intercepted 1% system corruption. 08793_ System corrupted: Matter fused (-8). 08795_ Imp. Corruption Screen intercepted 1% system corruption. 08801_ Prc. Energy Filter destroyed. 08804_ Tesla Rifle destroyed. 08808_ System corrupted: Matter fused (-5). 08809_ Released Force Rifle. 08809_ Released Gyrokinetic Inverter. 08809_ Released Imp. Focal Shield. 08809_ Released Gamma Rifle. 08809_ Released Imp. Armor Integrity Analyzer. 08809_ Released Imp. Hacking Suite. 08809_ Released Cld. Aerolev Unit. 08809_ Released Linear Gravjet. 08809_ Released Backup Power I. 08809_ Released Adv. Cooling System. 08809_ Released Core Analyzer. 08809_ Released Imp. Corruption Screen. 08809_ Acquired Gyrokinetic Inverter. Map ----- +----------------------------------------------------+ | ?????????????????????????????????????????? | | ?????????????????????????????????????????? | | ?????????????????????????????????????????? | | ?????????????????????????????????????????? | | ?????????????????????????????????????????? | | ?????????????????????????????????????????? | | ?????????????????????????????????????????? | | ?????????????????????????????????????????? | | ?????????????????????????????????????????? | | ?????????????????????????????????????????? | | ?????????????????????????????????????????? | | ?????????????????????????????????????????? | | ?????????????????????????????????????????? | | ?????????????????????????????????????????? | | ?????????????????????????????????????????? | | ?????????????????????????????????????????? | | ?????????????????????????????????????????? | | ?????????????????????????????????????????? | | ?????????????????????????????????????????? | | ?????????????????????????????????????????? | | ??????????????????????######+#???????????? | | ??????????????????????# #???????????? | | ??????????????????????# #???????????? | | ??????????????????????# p"""#???????????? | | ???????????????????# ! R"#?########### | | ???????????????????# =@"""#?#! # | | ???????????????????#*![[= #?# """""" # | | ?????????????### ######p##### """""" # | | ?????????????+ + """" # | | ^ ?????????????# # """""" # | | ??????????????# # # | | ??????????? # """""" # | | ??????????? # """""" # | | ???????????? + """""" # | | ?????????? # """""" # | | ????????? # # | | #?????????# ###### # """""" # | | #?????????# ?????# # """""" # | | #????????? ?????# # """""" # | | #?????????T ?????# # """""" # | | #?????????# ??????# # # | | #?????????# ?????## ######+#### | | +########### ?????????# ]##### #??? | | # #??????????# #??? | | # #??????????# ##+######? | | """ """ # #??????????## ## #? | | """ """ # #?????????### ## #? | | """ """ # #?????????+ ## #? | | + #?????????# ## #? | | """ """ # #?????????# ## #? | +----------------------------------------------------+ Best States ------------- Heat Dissipation 71 Energy Generation 31 Energy Capacity 505 Matter Stores 300 Matter Capacity 300 Sight Range 16 Terrain Scan Density 10 Base Temperature (-) 150 EM Shielding 3 Corruption Block 15 Armor Coverage 225 Resistance: KI 25 Core Shielding 20 Weapon Shielding 33 Weapon Cycling 15 Phase Shifting 5 Evasion (%) 60 Targeting Accuracy 8 Core Analysis 6 Armor Integrity Analysis 40 Energy Filtering 50 Offensive Hacking 26 Defensive Hacking 11 Item Schematics ----------------- Hvy. Ion Cannon | -7/Zion | Archive Hvy. Flak Cannon | -7/Zion | Archive 0b10 Decoder Chip [Skirmisher] | -7/Zion | Archive Adv. ECM Suite | -7/Zion | Archive Arm. Leg | -7/Zion | Archive Arc Projector | -7/Zion | Archive Hyp. Gauss Cannon | -7/Zion | Archive Coil Gun | -7/Zion | Archive Corruption Screen | -7/Zion | Archive Energy Filter | -7/Zion | Archive Flexi-carbon Leg | -7/Zion | Archive Mak. Laser | -7/Zion | Archive Angular Momentum Engine | -7/Zion | Archive Adv. Trap Extractor | -7/Zion | Archive Phasing Sabre | -5/Factory | Scanalyzed Arm. Huge Wheel | -5/Factory | Scanalyzed Adv. Heavy Treads | -5/Factory | Scanalyzed Robot Schematics ------------------ Y-54 Guardian | -7/Zion | Archive L-41 Fighter | -7/Zion | Archive G-47 Trooper | -7/Zion | Archive G-73 Enforcer | -7/Zion | Archive Fabricated ------------ Flexi-carbon Leg | x2 | -5/Factory Angular Momentum Engine | x2 | -5/Factory Alien Tech Used ----------------- None Achievements -------------- Deadly Force Prison Break Challenges ------------ None Game ------ Seed TripodCoolantSuperbattery Manual? 0 Play Time 01:52:47 Cumulative 20.1 hours Start 2024.07.30 @ 23:49:27 End 2024.07.31 @ 01:44:53 Sessions 1 Manual Loads 0 Difficulty Rogue Special Mode None Game No. 25 Rogue 25 Adventurer 0 Explorer 0 Win Type - Total 0 Types 0/0/0/0/0/0/0/0/0 Lore% 24 Gallery% 31 Achievement% 21 Wizard Run 0 Options --------- Layout 0 ASCII 0 Keyboard 0 Movement Arrows Keybinds 0 Fullscreen 2 Font 24/Smallcaps Map View 76x50 Zoom Use 0% Tactical HUD 1 Map Filters NONE Filters NONE Steam 1 RUN: 019c71fc-857a-46b8-9be8-ffef3cc916c4